[Event "Titled Tuesday Blitz April 26 Early 2022"]
[White "Mikhnenko, Alexander"]
[Black "Ciorgovean, Iustin"]
[WhiteFideId "34143014"]
[BlackFideId "1242911"]
[WhiteElo "2117"]
[BlackElo "2075"]
[Result "0-1"]
[Round "05"]
[TimeControl "180+1"]
[Date "2022.04.26"]
[WhiteClock "0:00:04"]
[BlackClock "0:00:13"]

1. e4 {[%clk 0:03:00]}  e5 {[%clk 0:02:57]} 2. Nf3 {[%clk 0:03:01]}  Nc6 {[%clk 0:02:57]} 3. Bb5 {[%clk 0:03:01]}  a6 {[%clk 0:02:58]} 4. Ba4 {[%clk 0:03:01]}  Nf6 {[%clk 0:02:58]} 5. Qe2 {[%clk 0:03:01]}  b5 {[%clk 0:02:55]} 6. Bb3 {[%clk 0:03:01]}  Be7 {[%clk 0:02:54]} 7. O-O {[%clk 0:03:01]}  O-O {[%clk 0:02:55]} 8. c3 {[%clk 0:03:00]}  d6 {[%clk 0:02:54]} 9. Rd1 {[%clk 0:02:59]}  Na5 {[%clk 0:02:39]} 10. Bc2 {[%clk 0:02:59]}  c5 {[%clk 0:02:40]} 11. d4 {[%clk 0:02:59]}  Qc7 {[%clk 0:02:40]} 12. h3 {[%clk 0:02:40]}  Re8 {[%clk 0:02:25]} 13. d5 {[%clk 0:02:38]}  Bd7 {[%clk 0:02:20]} 14. Nbd2 {[%clk 0:02:24]}  g6 {[%clk 0:02:18]} 15. a4 {[%clk 0:02:15]}  Bf8 {[%clk 0:02:13]} 16. Nf1 {[%clk 0:02:08]}  Bg7 {[%clk 0:02:11]} 17. g4 {[%clk 0:02:05]}  h5 {[%clk 0:02:04]} 18. g5 {[%clk 0:01:53]}  Nh7 {[%clk 0:02:02]} 19. Kh2 {[%clk 0:01:41]}  c4 {[%clk 0:01:53]} 20. Ng3 {[%clk 0:01:07]}  Nb3 {[%clk 0:01:42]} 21. Bxb3 {[%clk 0:01:05]}  cxb3 {[%clk 0:01:43]} 22. a5 {[%clk 0:01:02]}  Qc4 {[%clk 0:01:25]} 23. Be3 {[%clk 0:00:56]}  Rec8 {[%clk 0:01:16]} 24. Nd2 {[%clk 0:00:44]}  Qc7 {[%clk 0:00:54]} 25. Nxb3 {[%clk 0:00:41]}  Qd8 {[%clk 0:00:54]} 26. h4 {[%clk 0:00:31]}  f6 {[%clk 0:00:48]} 27. Rg1 {[%clk 0:00:15]}  fxg5 {[%clk 0:00:46]} 28. hxg5 {[%clk 0:00:15]}  Qe7 {[%clk 0:00:25]} 29. Qf3 {[%clk 0:00:07]}  Nxg5 {[%clk 0:00:19]} 30. Qg2 {[%clk 0:00:07]}  Bg4 {[%clk 0:00:15]} 31. f3 {[%clk 0:00:04]}  Nxf3+ {[%clk 0:00:14]} 32. Kh1 {[%clk 0:00:04]}  Qh4+ {[%clk 0:00:13]} 0-1


[Site "https://www.chess.com"]

[Event "Titled Tuesday Blitz April 26 Early 2022"]
[White "Moroni, Luca Jr"]
[Black "Sarana, Alexey"]
[WhiteFideId "865834"]
[BlackFideId "24133795"]
[WhiteElo "2573"]
[BlackElo "2666"]
[Result "1-0"]
[Round "05"]
[TimeControl "180+1"]
[Date "2022.04.26"]
[WhiteClock "0:00:04"]
[BlackClock "0:00:03"]

1. d4 {[%clk 0:03:00]}  Nf6 {[%clk 0:02:06]} 2. c4 {[%clk 0:02:59]}  e6 {[%clk 0:02:06]} 3. Nc3 {[%clk 0:02:59]}  Bb4 {[%clk 0:02:07]} 4. Nf3 {[%clk 0:02:58]}  d5 {[%clk 0:02:07]} 5. cxd5 {[%clk 0:02:58]}  exd5 {[%clk 0:02:07]} 6. Bf4 {[%clk 0:02:58]}  Ne4 {[%clk 0:02:04]} 7. Rc1 {[%clk 0:02:54]}  Nc6 {[%clk 0:02:04]} 8. Nd2 {[%clk 0:02:50]}  Nxc3 {[%clk 0:02:00]} 9. bxc3 {[%clk 0:02:50]}  Bd6 {[%clk 0:02:01]} 10. Bxd6 {[%clk 0:02:44]}  Qxd6 {[%clk 0:02:02]} 11. e3 {[%clk 0:02:44]}  Ne7 {[%clk 0:02:01]} 12. Bd3 {[%clk 0:02:31]}  O-O {[%clk 0:02:00]} 13. c4 {[%clk 0:02:31]}  c6 {[%clk 0:02:00]} 14. O-O {[%clk 0:02:29]}  Be6 {[%clk 0:01:53]} 15. Qb3 {[%clk 0:02:12]}  Qd7 {[%clk 0:01:49]} 16. cxd5 {[%clk 0:02:05]}  Nxd5 {[%clk 0:01:47]} 17. Qb2 {[%clk 0:02:00]}  Nf6 {[%clk 0:01:43]} 18. Rb1 {[%clk 0:01:51]}  b6 {[%clk 0:01:40]} 19. Ne4 {[%clk 0:01:47]}  Nxe4 {[%clk 0:01:34]} 20. Bxe4 {[%clk 0:01:48]}  Rac8 {[%clk 0:01:31]} 21. Rfc1 {[%clk 0:01:47]}  c5 {[%clk 0:01:24]} 22. dxc5 {[%clk 0:01:48]}  bxc5 {[%clk 0:01:24]} 23. Qc2 {[%clk 0:01:43]}  f5 {[%clk 0:01:05]} 24. Rb7 {[%clk 0:01:33]}  Qd6 {[%clk 0:01:05]} 25. Bf3 {[%clk 0:01:15]}  c4 {[%clk 0:01:04]} 26. Rd1 {[%clk 0:00:44]}  Qe5 {[%clk 0:01:01]} 27. Re7 {[%clk 0:00:36]}  Rfd8 {[%clk 0:00:30]} 28. Rxd8+ {[%clk 0:00:30]}  Rxd8 {[%clk 0:00:31]} 29. Qxc4 {[%clk 0:00:19]}  Qa1+ {[%clk 0:00:31]} 30. Qf1 {[%clk 0:00:18]}  Qxa2 {[%clk 0:00:30]} 31. h3 {[%clk 0:00:16]}  Rb8 {[%clk 0:00:30]} 32. Qd3 {[%clk 0:00:10]}  Qa1+ {[%clk 0:00:19]} 33. Kh2 {[%clk 0:00:10]}  Qe5+ {[%clk 0:00:19]} 34. g3 {[%clk 0:00:11]}  Kf8 {[%clk 0:00:18]} 35. Qa3 {[%clk 0:00:05]}  Kg8 {[%clk 0:00:06]} 36. Qxa7 {[%clk 0:00:04]}  Rf8 {[%clk 0:00:05]} 37. Qb7 {[%clk 0:00:03]}  Rf6 {[%clk 0:00:03]} 38. Re8+ {[%clk 0:00:02]}  Rf8 {[%clk 0:00:03]} 39. Rxe6 {[%clk 0:00:03]}  Qxe6 {[%clk 0:00:02]} 40. Bd5 {[%clk 0:00:03]}  Qf7 {[%clk 0:00:02]} 41. Bxf7+ {[%clk 0:00:03]}  Rxf7 {[%clk 0:00:03]} 42. Qd5 {[%clk 0:00:04]} 1-0


[Site "https://www.chess.com"]

[Event "Titled Tuesday Blitz April 26 Early 2022"]
[White "Moskalenko, Alexander"]
[Black "Maghsoodloo, Parham"]
[WhiteFideId "4155351"]
[BlackFideId "12539929"]
[WhiteElo "2434"]
[BlackElo "2630"]
[Result "0-1"]
[Round "05"]
[TimeControl "180+1"]
[Date "2022.04.26"]
[WhiteClock "0:00:02"]
[BlackClock "0:00:08"]

1. e4 {[%clk 0:02:54]}  c5 {[%clk 0:02:59]} 2. Nf3 {[%clk 0:02:54]}  d6 {[%clk 0:02:59]} 3. d4 {[%clk 0:02:54]}  cxd4 {[%clk 0:03:00]} 4. Nxd4 {[%clk 0:02:55]}  Nf6 {[%clk 0:03:01]} 5. Nc3 {[%clk 0:02:56]}  a6 {[%clk 0:03:01]} 6. h3 {[%clk 0:02:56]}  e5 {[%clk 0:02:59]} 7. Nf3 {[%clk 0:02:44]}  Be7 {[%clk 0:02:56]} 8. Bc4 {[%clk 0:02:42]}  Be6 {[%clk 0:02:54]} 9. Bb3 {[%clk 0:02:41]}  Nbd7 {[%clk 0:02:54]} 10. O-O {[%clk 0:02:38]}  h6 {[%clk 0:02:44]} 11. Re1 {[%clk 0:02:25]}  O-O {[%clk 0:02:44]} 12. Nh4 {[%clk 0:02:25]}  Re8 {[%clk 0:02:34]} 13. Ng6 {[%clk 0:02:13]}  Nc5 {[%clk 0:02:19]} 14. Nxe7+ {[%clk 0:02:10]}  Qxe7 {[%clk 0:02:19]} 15. Nd5 {[%clk 0:02:10]}  Nxd5 {[%clk 0:02:11]} 16. Bxd5 {[%clk 0:02:11]}  Rac8 {[%clk 0:02:06]} 17. Be3 {[%clk 0:02:11]}  b5 {[%clk 0:02:04]} 18. c3 {[%clk 0:02:04]}  Na4 {[%clk 0:02:01]} 19. Re2 {[%clk 0:02:00]}  Red8 {[%clk 0:01:48]} 20. Rc1 {[%clk 0:01:47]}  Qe8 {[%clk 0:01:37]} 21. Rec2 {[%clk 0:01:33]}  Rc7 {[%clk 0:01:20]} 22. b3 {[%clk 0:01:22]}  Nc5 {[%clk 0:01:20]} 23. b4 {[%clk 0:01:19]}  Bxd5 {[%clk 0:01:17]} 24. Qxd5 {[%clk 0:01:17]}  Na4 {[%clk 0:01:17]} 25. c4 {[%clk 0:01:14]}  Rdc8 {[%clk 0:01:16]} 26. Qd3 {[%clk 0:00:45]}  Qd7 {[%clk 0:00:19]} 27. cxb5 {[%clk 0:00:33]}  Rxc2 {[%clk 0:00:19]} 28. Rxc2 {[%clk 0:00:34]}  Rxc2 {[%clk 0:00:19]} 29. Qxc2 {[%clk 0:00:34]}  axb5 {[%clk 0:00:20]} 30. g4 {[%clk 0:00:21]}  Kf8 {[%clk 0:00:16]} 31. Kg2 {[%clk 0:00:19]}  Ke7 {[%clk 0:00:16]} 32. a3 {[%clk 0:00:16]}  Qb7 {[%clk 0:00:15]} 33. f3 {[%clk 0:00:15]}  Kd7 {[%clk 0:00:15]} 34. Qb3 {[%clk 0:00:14]}  Ke8 {[%clk 0:00:15]} 35. Qc2 {[%clk 0:00:14]}  Ke7 {[%clk 0:00:15]} 36. h4 {[%clk 0:00:13]}  Qd7 {[%clk 0:00:10]} 37. h5 {[%clk 0:00:12]}  Kd8 {[%clk 0:00:08]} 38. g5 {[%clk 0:00:11]}  hxg5 {[%clk 0:00:08]} 39. Bxg5+ {[%clk 0:00:10]}  f6 {[%clk 0:00:09]} 40. Be3 {[%clk 0:00:09]}  Qc7 {[%clk 0:00:09]} 41. Qd3 {[%clk 0:00:05]}  Qc6 {[%clk 0:00:09]} 42. Kg3 {[%clk 0:00:05]}  Nb2 {[%clk 0:00:08]} 43. Qb3 {[%clk 0:00:02]}  Nc4 {[%clk 0:00:09]} 44. Kf2 {[%clk 0:00:02]}  Qa6 {[%clk 0:00:08]} 0-1


[Site "https://www.chess.com"]

[Event "Titled Tuesday Blitz April 26 Early 2022"]
[White "Moussard, Jules"]
[Black "Le, Tuan Minh"]
[WhiteFideId "642908"]
[BlackFideId "12401153"]
[WhiteElo "2589"]
[BlackElo "2450"]
[Result "1/2-1/2"]
[Round "05"]
[TimeControl "180+1"]
[Date "2022.04.26"]
[WhiteClock "0:00:12"]
[BlackClock "0:00:05"]

1. e4 {[%clk 0:02:56]}  c5 {[%clk 0:02:00]} 2. Nf3 {[%clk 0:02:55]}  Nf6 {[%clk 0:02:01]} 3. e5 {[%clk 0:02:54]}  Nd5 {[%clk 0:02:01]} 4. Nc3 {[%clk 0:02:55]}  e6 {[%clk 0:02:02]} 5. Nxd5 {[%clk 0:02:39]}  exd5 {[%clk 0:02:03]} 6. d4 {[%clk 0:02:40]}  Nc6 {[%clk 0:02:03]} 7. dxc5 {[%clk 0:02:32]}  Bxc5 {[%clk 0:02:04]} 8. Bd3 {[%clk 0:02:30]}  d6 {[%clk 0:02:04]} 9. exd6 {[%clk 0:02:29]}  Qxd6 {[%clk 0:02:05]} 10. O-O {[%clk 0:02:28]}  O-O {[%clk 0:02:05]} 11. h3 {[%clk 0:02:27]}  Re8 {[%clk 0:02:05]} 12. c3 {[%clk 0:02:21]}  Bd7 {[%clk 0:01:50]} 13. Kh1 {[%clk 0:02:06]}  Bb6 {[%clk 0:01:46]} 14. Bg5 {[%clk 0:02:04]}  h6 {[%clk 0:01:16]} 15. Bh4 {[%clk 0:02:04]}  Qf4 {[%clk 0:01:17]} 16. Bg3 {[%clk 0:02:00]}  Qf6 {[%clk 0:01:17]} 17. Kh2 {[%clk 0:01:47]}  Bf5 {[%clk 0:01:16]} 18. Qc2 {[%clk 0:01:42]}  Be4 {[%clk 0:01:14]} 19. Nd2 {[%clk 0:01:42]}  Bxd3 {[%clk 0:01:11]} 20. Qxd3 {[%clk 0:01:43]}  d4 {[%clk 0:01:10]} 21. Ne4 {[%clk 0:01:35]}  Qg6 {[%clk 0:01:10]} 22. Rfe1 {[%clk 0:01:29]}  dxc3 {[%clk 0:01:10]} 23. bxc3 {[%clk 0:01:28]}  Rad8 {[%clk 0:01:10]} 24. Qf3 {[%clk 0:01:26]}  Ne5 {[%clk 0:01:08]} 25. Bxe5 {[%clk 0:01:23]}  Rxe5 {[%clk 0:01:09]} 26. Ng3 {[%clk 0:01:22]}  Red5 {[%clk 0:01:03]} 27. Re2 {[%clk 0:01:17]}  h5 {[%clk 0:00:55]} 28. Rae1 {[%clk 0:01:12]}  h4 {[%clk 0:00:51]} 29. Nf1 {[%clk 0:00:43]}  Rf5 {[%clk 0:00:47]} 30. Qxb7 {[%clk 0:00:28]}  Bxf2 {[%clk 0:00:45]} 31. Qc7 {[%clk 0:00:23]}  Rd3 {[%clk 0:00:34]} 32. Re8+ {[%clk 0:00:19]}  Kh7 {[%clk 0:00:34]} 33. Qb8 {[%clk 0:00:19]}  Bg3+ {[%clk 0:00:20]} 34. Nxg3 {[%clk 0:00:19]}  Qxg3+ {[%clk 0:00:20]} 35. Qxg3 {[%clk 0:00:20]}  hxg3+ {[%clk 0:00:21]} 36. Kg1 {[%clk 0:00:20]}  Rxc3 {[%clk 0:00:21]} 37. R8e3 {[%clk 0:00:21]}  Rfc5 {[%clk 0:00:20]} 38. Kf1 {[%clk 0:00:19]}  Rxe3 {[%clk 0:00:19]} 39. Rxe3 {[%clk 0:00:20]}  Rc1+ {[%clk 0:00:19]} 40. Ke2 {[%clk 0:00:19]}  Rc2+ {[%clk 0:00:20]} 41. Kf3 {[%clk 0:00:20]}  Rxa2 {[%clk 0:00:20]} 42. Kxg3 {[%clk 0:00:21]}  a5 {[%clk 0:00:21]} 43. Re7 {[%clk 0:00:20]}  Kg6 {[%clk 0:00:21]} 44. Ra7 {[%clk 0:00:21]}  a4 {[%clk 0:00:21]} 45. Kf3 {[%clk 0:00:20]}  a3 {[%clk 0:00:21]} 46. g4 {[%clk 0:00:18]}  Ra1 {[%clk 0:00:21]} 47. h4 {[%clk 0:00:18]}  a2 {[%clk 0:00:22]} 48. Kg2 {[%clk 0:00:18]}  Kf6 {[%clk 0:00:19]} 49. Ra6+ {[%clk 0:00:18]}  Ke5 {[%clk 0:00:19]} 50. Ra5+ {[%clk 0:00:19]}  Kd4 {[%clk 0:00:17]} 51. g5 {[%clk 0:00:14]}  Ke4 {[%clk 0:00:17]} 52. h5 {[%clk 0:00:14]}  Rb1 {[%clk 0:00:07]} 53. Rxa2 {[%clk 0:00:13]}  Kf5 {[%clk 0:00:07]} 54. Ra5+ {[%clk 0:00:13]}  Kg4 {[%clk 0:00:07]} 55. h6 {[%clk 0:00:14]}  Rb2+ {[%clk 0:00:08]} 56. Kg1 {[%clk 0:00:11]}  gxh6 {[%clk 0:00:05]} 57. gxh6 {[%clk 0:00:12]}  Rb8 {[%clk 0:00:06]} 58. Ra7 {[%clk 0:00:11]}  Rf8 {[%clk 0:00:03]} 59. h7 {[%clk 0:00:11]}  Rh8 {[%clk 0:00:02]} 60. Rxf7 {[%clk 0:00:11]}  Kg5 {[%clk 0:00:02]} 61. Kg2 {[%clk 0:00:11]}  Kg6 {[%clk 0:00:03]} 62. Ra7 {[%clk 0:00:12]}  Rxh7 {[%clk 0:00:04]} 63. Rxh7 {[%clk 0:00:12]}  Kxh7 {[%clk 0:00:05]} 1/2-1/2


[Site "https://www.chess.com"]

[Event "Titled Tuesday Blitz April 26 Early 2022"]
[White "Narayanan, Srinath"]
[Black "Chuemsakul, Sarocha"]
[WhiteFideId "5018420"]
[BlackFideId "6203710"]
[WhiteElo "2472"]
[BlackElo "1703"]
[Result "1-0"]
[Round "05"]
[TimeControl "180+1"]
[Date "2022.04.26"]
[WhiteClock "0:00:36"]
[BlackClock "0:00:02"]

1. d4 {[%clk 0:02:54]}  Nf6 {[%clk 0:03:00]} 2. Nf3 {[%clk 0:02:54]}  g6 {[%clk 0:02:59]} 3. c4 {[%clk 0:02:53]}  Bg7 {[%clk 0:03:00]} 4. Nc3 {[%clk 0:02:54]}  d6 {[%clk 0:02:58]} 5. g3 {[%clk 0:02:54]}  O-O {[%clk 0:02:50]} 6. Bg2 {[%clk 0:02:55]}  c5 {[%clk 0:02:50]} 7. O-O {[%clk 0:02:54]}  Nc6 {[%clk 0:02:51]} 8. dxc5 {[%clk 0:02:54]}  dxc5 {[%clk 0:02:51]} 9. Be3 {[%clk 0:02:54]}  Nd7 {[%clk 0:02:34]} 10. Qc1 {[%clk 0:02:51]}  e6 {[%clk 0:02:08]} 11. Rd1 {[%clk 0:02:50]}  Qe7 {[%clk 0:02:08]} 12. Ne4 {[%clk 0:02:38]}  b6 {[%clk 0:01:41]} 13. Nd6 {[%clk 0:02:35]}  Rb8 {[%clk 0:01:35]} 14. Bg5 {[%clk 0:02:28]}  f6 {[%clk 0:01:17]} 15. Bh6 {[%clk 0:02:27]}  Nce5 {[%clk 0:00:57]} 16. Bxg7 {[%clk 0:01:55]}  Kxg7 {[%clk 0:00:57]} 17. Nh4 {[%clk 0:01:56]}  Nf7 {[%clk 0:00:23]} 18. Nb5 {[%clk 0:01:45]}  Nde5 {[%clk 0:00:20]} 19. f4 {[%clk 0:01:44]}  Ng4 {[%clk 0:00:19]} 20. h3 {[%clk 0:01:43]}  Ngh6 {[%clk 0:00:19]} 21. Qc3 {[%clk 0:01:40]}  Bb7 {[%clk 0:00:17]} 22. Nf3 {[%clk 0:01:39]}  a6 {[%clk 0:00:17]} 23. Na3 {[%clk 0:01:38]}  Rfd8 {[%clk 0:00:17]} 24. Rxd8 {[%clk 0:01:35]}  Rxd8 {[%clk 0:00:16]} 25. Re1 {[%clk 0:01:36]}  Nf5 {[%clk 0:00:16]} 26. Kf2 {[%clk 0:01:34]}  Nd4 {[%clk 0:00:16]} 27. Nc2 {[%clk 0:01:26]}  Nxf3 {[%clk 0:00:16]} 28. exf3 {[%clk 0:01:27]}  Qd6 {[%clk 0:00:14]} 29. Re2 {[%clk 0:01:26]}  Nh6 {[%clk 0:00:13]} 30. h4 {[%clk 0:01:25]}  Nf5 {[%clk 0:00:14]} 31. Bh3 {[%clk 0:01:25]}  Nd4 {[%clk 0:00:11]} 32. Nxd4 {[%clk 0:01:15]}  cxd4 {[%clk 0:00:12]} 33. Qd3 {[%clk 0:01:15]}  f5 {[%clk 0:00:13]} 34. Re5 {[%clk 0:01:14]}  Kf6 {[%clk 0:00:11]} 35. h5 {[%clk 0:01:14]}  Qb4 {[%clk 0:00:08]} 36. Qe2 {[%clk 0:01:13]}  Rd6 {[%clk 0:00:06]} 37. hxg6 {[%clk 0:01:13]}  hxg6 {[%clk 0:00:06]} 38. a3 {[%clk 0:00:49]}  Qb3 {[%clk 0:00:07]} 39. c5 {[%clk 0:00:38]}  bxc5 {[%clk 0:00:07]} 40. Rxc5 {[%clk 0:00:39]}  d3 {[%clk 0:00:07]} 41. Qe5+ {[%clk 0:00:39]}  Ke7 {[%clk 0:00:07]} 42. Rc7+ {[%clk 0:00:36]}  Rd7 {[%clk 0:00:02]} 43. Qg7+ {[%clk 0:00:36]} 1-0


[Site "https://www.chess.com"]

[Event "Titled Tuesday Blitz April 26 Early 2022"]
[White "Nazari, Arad"]
[Black "Barria Zuniga, Daniel"]
[WhiteFideId "12577324"]
[BlackFideId "3400816"]
[WhiteElo "2129"]
[BlackElo "2414"]
[Result "1-0"]
[Round "05"]
[TimeControl "180+1"]
[Date "2022.04.26"]
[WhiteClock "0:00:22"]
[BlackClock "0:00:03"]

1. e4 {[%clk 0:03:00]}  e6 {[%clk 0:02:56]} 2. d4 {[%clk 0:03:00]}  d5 {[%clk 0:02:56]} 3. Nd2 {[%clk 0:03:00]}  Ne7 {[%clk 0:02:53]} 4. Bd3 {[%clk 0:02:50]}  g6 {[%clk 0:02:51]} 5. e5 {[%clk 0:02:50]}  c5 {[%clk 0:02:38]} 6. c3 {[%clk 0:02:49]}  Nec6 {[%clk 0:02:32]} 7. Ne2 {[%clk 0:02:48]}  b6 {[%clk 0:02:27]} 8. O-O {[%clk 0:02:47]}  Ba6 {[%clk 0:02:26]} 9. Bxa6 {[%clk 0:02:44]}  Nxa6 {[%clk 0:02:25]} 10. Qa4 {[%clk 0:02:30]}  Nb8 {[%clk 0:02:16]} 11. Nf3 {[%clk 0:02:22]}  Qd7 {[%clk 0:02:15]} 12. Bg5 {[%clk 0:02:16]}  Nxe5 {[%clk 0:02:10]} 13. Qxd7+ {[%clk 0:02:15]}  Nexd7 {[%clk 0:02:09]} 14. dxc5 {[%clk 0:02:14]}  bxc5 {[%clk 0:02:07]} 15. Rad1 {[%clk 0:02:14]}  f6 {[%clk 0:01:56]} 16. Bc1 {[%clk 0:02:12]}  Nc6 {[%clk 0:01:55]} 17. Nf4 {[%clk 0:02:11]}  Kf7 {[%clk 0:01:55]} 18. Rfe1 {[%clk 0:02:10]}  Re8 {[%clk 0:01:50]} 19. b3 {[%clk 0:02:03]}  Bd6 {[%clk 0:01:50]} 20. Nd3 {[%clk 0:02:03]}  e5 {[%clk 0:01:46]} 21. Nb2 {[%clk 0:01:59]}  Nb6 {[%clk 0:01:39]} 22. Nd2 {[%clk 0:01:46]}  Rd8 {[%clk 0:01:28]} 23. c4 {[%clk 0:01:42]}  d4 {[%clk 0:01:22]} 24. Nd3 {[%clk 0:01:42]}  f5 {[%clk 0:01:14]} 25. f3 {[%clk 0:01:41]}  Rhe8 {[%clk 0:01:12]} 26. Ba3 {[%clk 0:01:39]}  Nd7 {[%clk 0:01:09]} 27. Re2 {[%clk 0:01:38]}  Re6 {[%clk 0:00:59]} 28. Rde1 {[%clk 0:01:38]}  Rde8 {[%clk 0:00:59]} 29. g4 {[%clk 0:01:35]}  a5 {[%clk 0:00:48]} 30. h3 {[%clk 0:01:35]}  Nb4 {[%clk 0:00:41]} 31. Bxb4 {[%clk 0:01:31]}  axb4 {[%clk 0:00:41]} 32. Nf2 {[%clk 0:01:24]}  Bf8 {[%clk 0:00:28]} 33. Nf1 {[%clk 0:01:23]}  Bh6 {[%clk 0:00:25]} 34. Ng3 {[%clk 0:01:22]}  Kf6 {[%clk 0:00:21]} 35. Kg2 {[%clk 0:01:07]}  Bf4 {[%clk 0:00:20]} 36. h4 {[%clk 0:00:59]}  Ra8 {[%clk 0:00:15]} 37. Nd3 {[%clk 0:00:53]}  Bxg3 {[%clk 0:00:14]} 38. Kxg3 {[%clk 0:00:54]}  Rae8 {[%clk 0:00:12]} 39. Nf2 {[%clk 0:00:48]}  h5 {[%clk 0:00:12]} 40. Kg2 {[%clk 0:00:40]}  hxg4 {[%clk 0:00:11]} 41. fxg4 {[%clk 0:00:41]}  e4 {[%clk 0:00:11]} 42. Rf1 {[%clk 0:00:35]}  Kg7 {[%clk 0:00:06]} 43. gxf5 {[%clk 0:00:33]}  gxf5 {[%clk 0:00:06]} 44. Nh3 {[%clk 0:00:34]}  Rg6+ {[%clk 0:00:05]} 45. Kh2 {[%clk 0:00:34]}  Re5 {[%clk 0:00:05]} 46. Nf4 {[%clk 0:00:34]}  Rg4 {[%clk 0:00:05]} 47. Nh5+ {[%clk 0:00:32]}  Kg6 {[%clk 0:00:05]} 48. Nf4+ {[%clk 0:00:32]}  Rxf4 {[%clk 0:00:05]} 49. Rxf4 {[%clk 0:00:32]}  d3 {[%clk 0:00:05]} 50. Rg2+ {[%clk 0:00:32]}  Kf6 {[%clk 0:00:05]} 51. h5 {[%clk 0:00:32]}  e3 {[%clk 0:00:05]} 52. h6 {[%clk 0:00:33]}  e2 {[%clk 0:00:05]} 53. h7 {[%clk 0:00:33]}  Re8 {[%clk 0:00:03]} 54. Rg8 {[%clk 0:00:22]} 1-0


[Site "https://www.chess.com"]

[Event "Titled Tuesday Blitz April 26 Early 2022"]
[White "Noboa Silva, Kevin"]
[Black "Samunenkov, Ihor"]
[WhiteFideId "3618471"]
[BlackFideId "14187086"]
[WhiteElo "2172"]
[BlackElo "2409"]
[Result "0-1"]
[Round "05"]
[TimeControl "180+1"]
[Date "2022.04.26"]
[WhiteClock "0:00:07"]
[BlackClock "0:00:10"]

1. d4 {[%clk 0:03:00]}  d5 {[%clk 0:02:57]} 2. c4 {[%clk 0:03:00]}  e6 {[%clk 0:02:56]} 3. Nc3 {[%clk 0:03:01]}  a6 {[%clk 0:02:56]} 4. cxd5 {[%clk 0:03:01]}  exd5 {[%clk 0:02:57]} 5. Bf4 {[%clk 0:03:01]}  Nf6 {[%clk 0:02:54]} 6. e3 {[%clk 0:03:00]}  Bd6 {[%clk 0:02:55]} 7. Bg3 {[%clk 0:03:01]}  O-O {[%clk 0:02:49]} 8. Bd3 {[%clk 0:03:01]}  Bg4 {[%clk 0:02:48]} 9. Qc2 {[%clk 0:02:59]}  Bh5 {[%clk 0:02:44]} 10. Bh4 {[%clk 0:02:52]}  Bg6 {[%clk 0:02:03]} 11. Nxd5 {[%clk 0:02:49]}  Bxd3 {[%clk 0:01:56]} 12. Qxd3 {[%clk 0:02:47]}  Nbd7 {[%clk 0:01:55]} 13. Qf5 {[%clk 0:02:31]}  Be7 {[%clk 0:01:51]} 14. Bxf6 {[%clk 0:02:09]}  Nxf6 {[%clk 0:01:47]} 15. Nxf6+ {[%clk 0:02:00]}  Bxf6 {[%clk 0:01:47]} 16. Nf3 {[%clk 0:01:58]}  g6 {[%clk 0:01:20]} 17. Qc2 {[%clk 0:01:35]}  Re8 {[%clk 0:01:11]} 18. O-O {[%clk 0:01:35]}  c6 {[%clk 0:01:11]} 19. Rad1 {[%clk 0:01:32]}  Qd5 {[%clk 0:01:11]} 20. a3 {[%clk 0:01:29]}  Rac8 {[%clk 0:01:10]} 21. Rfe1 {[%clk 0:01:29]}  Bg7 {[%clk 0:00:56]} 22. e4 {[%clk 0:01:25]}  Qd6 {[%clk 0:00:56]} 23. b4 {[%clk 0:01:22]}  Rcd8 {[%clk 0:00:53]} 24. Qc4 {[%clk 0:01:11]}  Qf4 {[%clk 0:00:52]} 25. d5 {[%clk 0:00:45]}  cxd5 {[%clk 0:00:45]} 26. Rxd5 {[%clk 0:00:45]}  Rc8 {[%clk 0:00:29]} 27. Qe2 {[%clk 0:00:45]}  Bc3 {[%clk 0:00:27]} 28. Qe3 {[%clk 0:00:36]}  Qg4 {[%clk 0:00:14]} 29. h3 {[%clk 0:00:34]}  Qe6 {[%clk 0:00:14]} 30. Ng5 {[%clk 0:00:33]}  Qxd5 {[%clk 0:00:10]} 31. exd5 {[%clk 0:00:33]}  Rxe3 {[%clk 0:00:09]} 32. Rxe3 {[%clk 0:00:33]}  Bd2 {[%clk 0:00:09]} 33. Rg3 {[%clk 0:00:31]}  Rc1+ {[%clk 0:00:06]} 34. Kh2 {[%clk 0:00:30]}  Bf4 {[%clk 0:00:07]} 35. Ne4 {[%clk 0:00:24]}  Rd1 {[%clk 0:00:06]} 36. d6 {[%clk 0:00:22]}  f5 {[%clk 0:00:03]} 37. Nc5 {[%clk 0:00:20]}  b6 {[%clk 0:00:03]} 38. Nxa6 {[%clk 0:00:17]}  Bxd6 {[%clk 0:00:03]} 39. h4 {[%clk 0:00:16]}  Ra1 {[%clk 0:00:03]} 40. b5 {[%clk 0:00:16]}  Rxa3 {[%clk 0:00:02]} 41. Kh3 {[%clk 0:00:16]}  Bxg3 {[%clk 0:00:02]} 42. fxg3 {[%clk 0:00:17]}  Rb3 {[%clk 0:00:03]} 43. Nc7 {[%clk 0:00:17]}  Kf7 {[%clk 0:00:03]} 44. Kh2 {[%clk 0:00:16]}  Rb2 {[%clk 0:00:03]} 45. Kh3 {[%clk 0:00:16]}  Kg7 {[%clk 0:00:02]} 46. Kh2 {[%clk 0:00:16]}  h6 {[%clk 0:00:03]} 47. Kh3 {[%clk 0:00:16]}  g5 {[%clk 0:00:03]} 48. hxg5 {[%clk 0:00:17]}  hxg5 {[%clk 0:00:04]} 49. Kh2 {[%clk 0:00:17]}  Kg6 {[%clk 0:00:04]} 50. Kg1 {[%clk 0:00:16]}  f4 {[%clk 0:00:03]} 51. gxf4 {[%clk 0:00:16]}  gxf4 {[%clk 0:00:04]} 52. Kf1 {[%clk 0:00:16]}  Kf5 {[%clk 0:00:04]} 53. Kg1 {[%clk 0:00:16]}  Ke5 {[%clk 0:00:04]} 54. Kf1 {[%clk 0:00:14]}  Kd6 {[%clk 0:00:04]} 55. Ne8+ {[%clk 0:00:12]}  Kd7 {[%clk 0:00:04]} 56. Nf6+ {[%clk 0:00:12]}  Ke6 {[%clk 0:00:05]} 57. Nh5 {[%clk 0:00:12]}  Kf5 {[%clk 0:00:04]} 58. Ng7+ {[%clk 0:00:12]}  Kg4 {[%clk 0:00:03]} 59. Ne8 {[%clk 0:00:09]}  Rxb5 {[%clk 0:00:03]} 60. Nf6+ {[%clk 0:00:08]}  Kf5 {[%clk 0:00:03]} 61. Ne8 {[%clk 0:00:07]}  Rb1+ {[%clk 0:00:04]} 62. Kf2 {[%clk 0:00:08]}  Rb2+ {[%clk 0:00:05]} 63. Kg1 {[%clk 0:00:08]}  b5 {[%clk 0:00:04]} 64. Nd6+ {[%clk 0:00:07]}  Kg4 {[%clk 0:00:05]} 65. Ne4 {[%clk 0:00:07]}  b4 {[%clk 0:00:05]} 66. Nf6+ {[%clk 0:00:04]}  Kf5 {[%clk 0:00:05]} 67. Nd7 {[%clk 0:00:04]}  b3 {[%clk 0:00:05]} 68. Nc5 {[%clk 0:00:05]}  Rb1+ {[%clk 0:00:06]} 69. Kh2 {[%clk 0:00:05]}  b2 {[%clk 0:00:07]} 70. Nd3 {[%clk 0:00:05]}  Rh1+ {[%clk 0:00:07]} 71. Kxh1 {[%clk 0:00:05]}  b1=Q+ {[%clk 0:00:08]} 72. Ne1 {[%clk 0:00:04]}  Qxe1+ {[%clk 0:00:08]} 73. Kh2 {[%clk 0:00:05]}  Qg3+ {[%clk 0:00:08]} 74. Kg1 {[%clk 0:00:06]}  f3 {[%clk 0:00:09]} 75. Kf1 {[%clk 0:00:07]}  Qxg2+ {[%clk 0:00:10]} 0-1


[Site "https://www.chess.com"]